bitfinex/quotes_BTCUSD_20241124
["timestamp","ask_amount","ask_price","bid_price","bid_amount"]
[1732447032919,0.0801,97284.0,97274.0,0.023]
[1732447033136,0.0801,97284.0,97274.0,0.02862507]
[1732447034226,0.0801,97284.0,97268.0,0.000659]
[1732447034495,0.10201427,97283.0,97275.0,0.00492681]
[1732447034721,0.09831427,97283.0,97268.0,0.000659]
[1732447035178,0.09831427,97283.0,97268.0,0.04293369]
[1732447035403,0.1362714,97277.0,97268.0,0.000659]
[1732447035633,0.10201427,97276.0,97274.0,0.15]
[1732447035852,0.1362714,97275.0,97274.0,0.15]
[1732447036076,0.22713181,97281.0,97275.0,0.00492944]
[1732447036077,0.18171643,97277.0,97275.0,0.00492944]
[1732447036293,0.0994456,97275.0,97274.0,0.15]
[1732447036505,0.1310175,97275.0,97268.0,0.000659]
[1732447036724,0.13621888,97272.0,97268.0,0.000659]
[1732447036929,0.2270635,97279.0,97268.0,0.000659]
[1732447036930,0.13720914,97271.0,97268.0,0.000659]
[1732447037195,0.09080914,97271.0,97268.0,0.000659]
[1732447037418,0.09080914,97272.0,97268.0,0.000659]
[1732447037896,0.09080914,97274.0,97268.0,0.000659]
[1732447038153,0.09080914,97272.0,97268.0,0.000659]
[1732447038668,0.09080914,97275.0,97268.0,0.000659]
[1732447038928,0.09080914,97274.0,97268.0,0.000659]
[1732447039658,0.13621888,97277.0,97268.0,0.000659]
[1732447039659,0.09080914,97275.0,97268.0,0.000659]
[1732447039907,0.19282341,97274.0,97268.0,0.000659]
[1732447040128,0.17090914,97273.0,97268.0,0.000659]
[1732447040357,0.10201427,97272.0,97268.0,0.000659]
[1732447040586,0.19282341,97272.0,97268.0,0.000659]
[1732447040853,0.09080914,97271.0,97268.0,0.000659]
[1732447041309,0.09080914,97272.0,97268.0,0.000659]
[1732447041560,0.19282341,97275.0,97268.0,0.000659]
[1732447041784,0.10201427,97275.0,97268.0,0.000659]
[1732447042504,0.09080914,97274.0,97268.0,0.000659]
[1732447042760,0.09080914,97276.0,97268.0,0.000659]
[1732447042998,0.09080914,97279.0,97268.0,0.000659]
[1732447043231,0.10201427,97278.0,97268.0,0.000659]
[1732447043689,0.19282341,97278.0,97268.0,0.000659]
[1732447044363,0.09080914,97277.0,97269.0,0.005014]
[1732447044587,0.09080914,97277.0,97268.0,0.000659]
[1732447044805,0.10201427,97278.0,97268.0,0.000659]
[1732447046189,0.09080914,97280.0,97268.0,0.000659]
[1732447046417,0.3060635,97290.0,97268.0,0.000659]
[1732447046418,0.13625185,97290.0,97268.0,0.000659]
[1732447046642,0.2807186,97302.0,97268.0,0.000659]
[1732447046861,0.2807186,97302.0,97271.0,0.173]
[1732447046862,0.19933051,97301.0,97271.0,0.173]
[1732447047082,0.10201427,97301.0,97271.0,0.173]
[1732447047300,0.0017186,97302.0,97273.0,0.173]
[1732447047515,0.10373287,97302.0,97273.0,0.173]
[1732447047729,0.10373287,97302.0,97275.0,0.023]
[1732447048192,0.10373287,97302.0,97277.0,0.023]
[1732447048411,0.03163053,97301.0,97277.0,0.023]
[1732447048631,0.0017186,97302.0,97279.0,0.023]
[1732447048857,0.09664385,97301.0,97279.0,0.023]
[1732447049086,0.0017186,97302.0,97281.0,0.023]
[1732447049334,0.0017186,97302.0,97281.0,0.173]
[1732447049567,0.0017186,97302.0,97283.0,0.15]
[1732447049853,0.0017186,97302.0,97285.0,0.173]
[1732447050066,0.0017186,97302.0,97287.0,0.173]
[1732447050291,0.0017186,97302.0,97289.0,0.173]
[1732447050514,0.0017186,97302.0,97290.0,0.10201427]
[1732447050744,0.0017186,97302.0,97291.0,0.15]
[1732447050991,0.0017186,97302.0,97301.0,0.15]
[1732447051226,0.10169775,97302.0,97292.0,0.00367414]
[1732447051484,0.10169775,97302.0,97291.0,0.15]
[1732447051485,0.10169775,97302.0,97301.0,0.00362505]
[1732447051738,0.10169775,97302.0,97289.0,0.0413809]
[1732447052188,0.10169775,97302.0,97290.0,0.00363576]
[1732447052681,0.10201427,97301.0,97268.0,0.04180197]
[1732447052913,0.079,97316.0,97291.0,0.00363478]
[1732447053143,0.10201427,97315.0,97271.0,0.06972782]
[1732447053367,0.10201427,97315.0,97273.0,0.173]
[1732447053593,0.10147973,97315.0,97274.0,0.10201427]
[1732447053822,0.10147973,97315.0,97275.0,0.15]
[1732447054305,0.03164315,97314.0,97276.0,0.00293004]
[1732447054538,0.28413189,97313.0,97275.0,0.15]
[1732447054788,0.18211762,97309.0,97268.0,0.04221853]
[1732447055019,0.23171762,97307.0,97268.0,0.04221853]
[1732447055249,0.66978939,97306.0,97269.0,0.00294061]
[1732447055437,0.66978939,97306.0,97268.0,0.04221853]
[1732447055438,0.13659969,97302.0,97268.0,0.04221853]
[1732447055701,0.27025711,97301.0,97268.0,0.04221853]
[1732447055949,0.13659969,97299.0,97268.0,0.04221853]
[1732447056177,0.27025711,97298.0,97268.0,0.04221853]
[1732447056440,0.09107685,97291.0,97269.0,0.00293452]
[1732447056674,0.13661527,97295.0,97269.0,0.00293452]
[1732447056675,0.13365742,97290.0,97269.0,0.00293452]
[1732447056920,0.10201427,97290.0,97269.0,0.00293452]
[1732447057681,0.09107685,97294.0,97269.0,0.00293452]
[1732447057923,0.2,97315.0,97269.0,0.00293452]
[1732447057924,0.09107685,97302.0,97270.0,0.15]
[1732447058150,0.13366749,97301.0,97270.0,0.15]
[1732447058384,0.12273007,97300.0,97271.0,0.00293835]
[1732447058660,0.13366749,97299.0,97271.0,0.00293835]
[1732447058895,0.09107685,97302.0,97273.0,0.15]
[1732447059134,0.03165428,97301.0,97275.0,0.15]
[1732447059375,0.12273113,97301.0,97277.0,0.15]
[1732447059624,0.09107685,97302.0,97279.0,0.15]
[1732447059903,0.27323055,97323.0,97279.0,0.15]
[1732447059904,0.03165391,97301.0,97279.0,0.15]
[1732447060129,0.22769213,97313.0,97279.0,0.15]
[1732447060130,0.09107685,97307.0,97281.0,0.15]
[1732447060396,0.09107685,97314.0,97283.0,0.15]
[1732447060682,0.10201427,97313.0,97283.0,0.15]
[1732447060918,0.03165507,97312.0,97284.0,0.00295796]
[1732447061144,0.10201427,97312.0,97284.0,0.00295796]
[1732447062884,0.03164831,97311.0,97284.0,0.00295796]
[1732447063369,0.03151976,97311.0,97284.0,0.04415481]
[1732447063600,0.03151976,97310.0,97284.0,0.00381716]
[1732447063864,0.03151976,97311.0,97284.0,0.00381716]
[1732447064081,0.03151976,97310.0,97284.0,0.00381716]
[1732447064313,0.10373267,97312.0,97284.0,0.00381716]
[1732447064314,0.03151976,97311.0,97284.0,0.00381716]
[1732447064566,0.03151976,97310.0,97284.0,0.00381716]
[1732447064836,0.03151976,97309.0,97284.0,0.00381716]
[1732447065318,0.10373267,97312.0,97284.0,0.00381716]
[1732447065319,0.03151976,97308.0,97284.0,0.00381716]
[1732447065541,0.03151976,97311.0,97284.0,0.00381716]
[1732447065760,0.03164076,97310.0,97284.0,0.00381716]
[1732447066225,0.03164076,97309.0,97285.0,0.1030421]
[1732447066450,0.03164076,97311.0,97286.0,0.15]
[1732447066694,0.03163911,97310.0,97286.0,0.15287782]
[1732447066921,0.03163911,97311.0,97286.0,0.15287782]
[1732447067148,0.03163911,97310.0,97286.0,0.15287782]
[1732447067593,0.03163911,97309.0,97286.0,0.15287782]
[1732447067811,0.0017184,97312.0,97286.0,0.15287782]
[1732447068041,0.03163825,97311.0,97286.0,0.15287782]
[1732447069035,0.03163825,97311.0,97286.0,0.15360392]
[1732447069715,0.1227151,97311.0,97286.0,0.15360392]
[1732447069935,0.03163825,97310.0,97287.0,0.10201427]
[1732447070156,0.03163825,97310.0,97288.0,0.15]
[1732447070375,0.03163825,97311.0,97288.0,0.15288462]
[1732447070630,0.03163825,97310.0,97288.0,0.15288462]
[1732447070896,0.09279525,97312.0,97288.0,0.15360672]
[1732447070897,0.03163825,97309.0,97288.0,0.15360672]
[1732447071158,0.03163825,97311.0,97288.0,0.00360672]
[1732447071381,0.09107685,97309.0,97288.0,0.00360672]
[1732447071601,0.03163825,97308.0,97289.0,0.00360666]
[1732447072075,0.1227151,97308.0,97284.0,0.0008592]
[1732447072312,0.09107685,97306.0,97290.0,0.00287429]
[1732447072553,0.09107685,97298.0,97284.0,0.0008592]
[1732447072826,0.09107685,97295.0,97284.0,0.0008592]
[1732447073073,0.1227151,97294.0,97284.0,0.0008592]
[1732447073325,0.13661527,97297.0,97284.0,0.0008592]
[1732447073326,0.03163825,97293.0,97284.0,0.0008592]
[1732447073553,0.1227151,97296.0,97284.0,0.0008592]
[1732447073778,0.1227151,97295.0,97285.0,0.00288629]
[1732447074014,0.03163825,97294.0,97284.0,0.0008592]
[1732447074776,0.03163825,97293.0,97284.0,0.0008592]
[1732447075020,0.03163825,97296.0,97285.0,0.00289247]
[1732447075260,0.03163825,97295.0,97285.0,0.00289247]
[1732447075504,0.03163825,97296.0,97284.0,0.0008592]
[1732447075741,0.03163825,97295.0,97284.0,0.0008592]
[1732447076000,0.1227151,97297.0,97284.0,0.0008592]
[1732447076244,0.03163825,97296.0,97284.0,0.0008592]
[1732447076503,0.03163825,97295.0,97284.0,0.2304592]
[1732447076728,0.0017184,97302.0,97284.0,0.2304592]
[1732447076949,0.03166252,97301.0,97285.0,0.00363679]
[1732447077171,0.03166252,97301.0,97285.0,0.00266915]
[1732447077613,0.03166252,97301.0,97285.0,0.0035207]
[1732447078994,0.03166252,97301.0,97285.0,0.00085155]
[1732447079211,0.12273937,97301.0,97284.0,0.0008592]
[1732447079430,0.09107685,97298.0,97284.0,0.0008592]
[1732447079657,0.12273937,97297.0,97284.0,0.0008592]
[1732447079888,0.03166252,97296.0,97284.0,0.0008592]
[1732447080606,0.03166252,97297.0,97284.0,0.0008592]
[1732447080829,0.0799,97295.0,97284.0,0.0008592]
[1732447081058,0.09107685,97292.0,97284.0,0.0008592]
[1732447081284,0.09107685,97289.0,97284.0,0.0008592]
[1732447081538,0.12273937,97288.0,97284.0,0.0008592]
[1732447081760,0.1821537,97293.0,97284.0,0.0008592]
[1732447081761,0.03166252,97287.0,97284.0,0.0008592]
[1732447081991,0.03166252,97289.0,97284.0,0.0008592]
[1732447082227,0.03166252,97288.0,97284.0,0.0008592]
[1732447082452,0.10201427,97287.0,97284.0,0.0008592]
[1732447082669,0.03166252,97286.0,97284.0,0.0008592]
[1732447082894,0.10201427,97285.0,97284.0,0.0008592]
[1732447083123,0.23231612,97285.0,97284.0,0.0008592]
[1732447083355,0.36893139,97285.0,97284.0,0.0008592]
[1732447083819,0.23231612,97285.0,97284.0,0.0008592]
[1732447084935,0.13030185,97285.0,97284.0,0.0008592]
[1732447085621,0.22145958,97285.0,97284.0,0.0008592]
[1732447086347,0.13030185,97285.0,97284.0,0.0008592]
[1732447087049,0.09115856,97300.0,97284.0,0.0008592]
[1732447087303,0.03170616,97299.0,97284.0,0.00366671]
[1732447087525,0.03170616,97300.0,97285.0,0.0464]
[1732447087750,0.03170616,97299.0,97285.0,0.0464]
[1732447088055,0.0017184,97302.0,97285.0,0.0464]
[1732447088056,0.03170616,97301.0,97286.0,0.0028183]
[1732447088150,0.0017184,97302.0,97286.0,0.0028183]
[1732447088151,0.03170616,97298.0,97286.0,0.0028183]
[1732447088379,0.03170616,97297.0,97286.0,0.0028183]
[1732447088605,0.0017184,97302.0,97286.0,0.0028183]
[1732447088827,0.03170751,97301.0,97286.0,0.0028183]
[1732447089516,0.0017164,97296.0,97286.0,0.0028183]
[1732447089979,0.03170417,97295.0,97286.0,0.0028183]
[1732447090750,0.09125113,97288.0,97284.0,0.0508592]
[1732447090993,0.51933728,97294.0,97284.0,0.0508592]
[1732447090994,0.09125113,97285.0,97284.0,0.0508592]
[1732447091253,0.03170417,97285.0,97284.0,0.0508592]
[1732447091957,0.12602005,97285.0,97284.0,0.0508592]
[1732447092185,0.2172907,97285.0,97284.0,0.0508592]
[1732447092690,0.12602005,97285.0,97284.0,0.0508592]
[1732447094308,0.26295999,97285.0,97284.0,0.0508592]
[1732447094545,0.12602005,97285.0,97284.0,0.0508592]
[1732447094764,0.30852232,97285.0,97284.0,0.0508592]
[1732447094987,0.12602005,97285.0,97284.0,0.0508592]
[1732447095236,0.22803432,97285.0,97284.0,0.0508592]
[1732447095468,0.56502437,97285.0,97284.0,0.0508592]
[1732447095951,0.79315221,97285.0,97284.0,0.0508592]
[1732447096167,0.4630101,97285.0,97284.0,0.0508592]
[1732447096387,0.30863083,97285.0,97284.0,0.0508592]
[1732447096607,0.12602005,97285.0,97284.0,0.0508592]
[1732447097063,0.4630101,97285.0,97284.0,0.0508592]
[1732447097765,0.69126553,97285.0,97284.0,0.0508592]
[1732447098213,0.4630101,97285.0,97284.0,0.0508592]
[1732447098438,0.26298167,97285.0,97284.0,0.0508592]
[1732447098666,0.12602005,97285.0,97284.0,0.0508592]
[1732447098896,0.26298196,97285.0,97284.0,0.0508592]
[1732447099132,0.4630724,97285.0,97284.0,0.0508592]
[1732447099370,0.46307084,97285.0,97284.0,0.0508592]
[1732447100508,0.56508511,97285.0,97284.0,0.0508592]
[1732447101203,0.79335231,97285.0,97284.0,0.0508592]
[1732447101421,0.79335231,97285.0,97284.0,0.05440621]
[1732447101644,0.79334718,97285.0,97284.0,0.0508592]
[1732447102081,0.56508511,97285.0,97284.0,0.0508592]
[1732447102564,0.56508511,97285.0,97284.0,0.05440782]
[1732447102803,0.46307084,97285.0,97284.0,0.05440782]
[1732447103685,0.64572704,97285.0,97284.0,0.0508592]
[1732447103909,0.12602005,97285.0,97284.0,0.05440782]
[1732447104148,0.11581394,97285.0,97284.0,0.0508592]
[1732447104368,0.18564588,97285.0,97284.0,0.0508592]
[1732447104587,0.09431588,97285.0,97284.0,0.0543649]
[1732447104817,0.1826562,97301.0,97284.0,0.0543649]
[1732447104818,0.13700587,97302.0,97284.0,0.0543649]
[1732447105025,0.22828357,97315.0,97284.0,0.0543649]
[1732447105240,0.47089686,97311.0,97284.0,0.0508592]
[1732447105480,0.36888259,97310.0,97284.0,0.0508592]
[1732447105708,0.47089686,97309.0,97284.0,0.0508592]
[1732447105921,0.36888259,97308.0,97284.0,0.0508592]
[1732447106155,0.47089686,97307.0,97284.0,0.0508592]
[1732447106393,0.39188259,97306.0,97284.0,0.0508592]
[1732447106617,0.0729,97304.0,97284.0,0.0508592]
[1732447106862,0.47089686,97303.0,97284.0,0.0508592]
[1732447107082,0.36888259,97302.0,97284.0,0.0508592]
[1732447107306,0.0796,97300.0,97284.0,0.0508592]
[1732447107532,0.47089686,97299.0,97284.0,0.0508592]
[1732447107758,0.36888259,97298.0,97284.0,0.0508592]
[1732447107982,0.47089686,97297.0,97284.0,0.0508592]
[1732447108210,0.39181312,97296.0,97284.0,0.0508592]
[1732447108422,0.12501427,97294.0,97284.0,0.0508592]
[1732447108675,0.2282931,97291.0,97284.0,0.0508592]
[1732447108876,0.38503146,97290.0,97284.0,0.0508592]
[1732447109124,0.36881312,97289.0,97284.0,0.0508592]
[1732447109346,0.35330737,97290.0,97284.0,0.0508592]
[1732447109347,0.49382739,97288.0,97284.0,0.0508592]
[1732447109571,0.023,97286.0,97284.0,0.0508592]
[1732447109798,0.49382739,97285.0,97284.0,0.0508592]
[1732447110070,0.59065974,97285.0,97284.0,0.0508592]
[1732447112121,0.59237614,97285.0,97284.0,0.0508592]
[1732447112847,0.59234159,97285.0,97284.0,0.0508592]
[1732447114010,0.82061129,97285.0,97284.0,0.0508592]
[1732447114238,0.59234159,97285.0,97284.0,0.0508592]
[1732447114954,0.023,97284.0,97277.0,0.15]
[1732447115189,0.22830998,97279.0,97277.0,0.15]
[1732447115423,0.22830998,97279.0,97278.0,0.00355515]
[1732447115659,0.35472069,97279.0,97277.0,0.15]
[1732447115879,0.36882888,97278.0,97277.0,0.15]
[1732447116110,0.56547946,97278.0,97268.0,0.000659]
[1732447116333,0.13701521,97271.0,97268.0,0.000659]
[1732447116571,0.0317744,97270.0,97268.0,0.000659]
[1732447117029,0.09134396,97269.0,97268.0,0.000659]
[1732447117269,0.12641071,97269.0,97268.0,0.000659]
[1732447117519,0.26342661,97269.0,97268.0,0.000659]
[1732447117771,0.12641071,97269.0,97268.0,0.000659]
[1732447118001,0.46367943,97269.0,97268.0,0.000659]
[1732447118484,0.30909858,97269.0,97268.0,0.000659]
[1732447118710,0.46367943,97269.0,97268.0,0.000659]
[1732447118949,0.46367943,97269.0,97268.0,0.04256391]
[1732447119173,0.46367943,97269.0,97268.0,0.000659]
[1732447119613,0.64645557,97269.0,97268.0,0.000659]
[1732447119846,0.46367943,97269.0,97268.0,0.000659]
[1732447120069,0.64645557,97269.0,97268.0,0.000659]
[1732447120337,0.46367943,97269.0,97268.0,0.000659]
[1732447120573,0.30920012,97269.0,97268.0,0.000659]
[1732447120819,0.46367943,97269.0,97268.0,0.000659]
[1732447121277,0.64647067,97269.0,97268.0,0.04247772]
[1732447121510,0.46367943,97269.0,97268.0,0.04247772]
[1732447121735,0.46367943,97269.0,97268.0,0.000659]
[1732447124463,0.6924525,97269.0,97268.0,0.000659]
[1732447124917,0.46367943,97269.0,97268.0,0.000659]
[1732447125585,0.40044252,97269.0,97268.0,0.000659]
[1732447125810,0.46367943,97269.0,97268.0,0.000659]
[1732447126487,0.12641071,97269.0,97268.0,0.000659]
[1732447126751,0.46420678,97269.0,97268.0,0.000659]
[1732447130093,0.40093704,97269.0,97268.0,0.000659]
[1732447130313,0.46420678,97269.0,97268.0,0.000659]
[1732447132335,0.56622105,97269.0,97268.0,0.000659]
[1732447132558,0.62574882,97269.0,97268.0,0.000659]
[1732447132775,0.56622105,97269.0,97268.0,0.000659]
[1732447136971,0.25142498,97269.0,97268.0,0.000659]
[1732447137187,0.58922718,97269.0,97268.0,0.000659]
[1732447137668,0.78922718,97269.0,97268.0,0.000659]
[1732447137863,0.023,97268.0,97261.0,0.0008582]
[1732447138085,0.023,97266.0,97261.0,0.0008582]
[1732447138294,0.023,97264.0,97261.0,0.0008582]
[1732447138542,0.023,97262.0,97261.0,0.0008582]
[1732447138760,0.59132124,97262.0,97261.0,0.0008582]
[1732447139416,0.59132124,97262.0,97261.0,0.00447625]
[1732447139635,0.59132124,97262.0,97261.0,0.0008582]
[1732447139908,0.59132124,97262.0,97261.0,0.00447625]
[1732447140566,0.59129203,97262.0,97261.0,0.0008582]
[1732447140794,0.59129203,97262.0,97261.0,0.00447625]
[1732447141042,0.59129203,97262.0,97261.0,0.0008582]
[1732447141883,0.56829203,97262.0,97261.0,0.0008582]
[1732447143364,0.59129203,97262.0,97261.0,0.0008582]
[1732447144093,0.90011305,97262.0,97261.0,0.0008582]
[1732447144342,0.59129203,97262.0,97261.0,0.0008582]
[1732447145871,0.56829203,97262.0,97261.0,0.0008582]
[1732447146133,0.46627776,97262.0,97261.0,0.0008582]
[1732447146566,0.56829203,97262.0,97261.0,0.0008582]
[1732447147534,0.59129203,97262.0,97261.0,0.0008582]
[1732447149169,0.66909203,97262.0,97261.0,0.0008582]
[1732447151221,0.71679203,97262.0,97261.0,0.0008582]
[1732447151457,1.02561141,97262.0,97261.0,0.0008582]
[1732447151923,0.71679203,97262.0,97261.0,0.0008582]
[1732447152870,0.023,97261.0,97232.0,0.15]
[1732447153095,0.27446473,97250.0,97232.0,0.15]
[1732447153309,0.36954739,97249.0,97232.0,0.15]
[1732447153548,0.36954739,97248.0,97245.0,0.04189325]
[1732447153764,0.36954739,97247.0,97245.0,0.04189325]
[1732447154011,0.36954739,97247.0,97245.0,0.0008582]
[1732447154012,0.33777299,97246.0,97245.0,0.0008582]
[1732447154242,0.56964536,97246.0,97245.0,0.0008582]
[1732447154469,0.59264536,97246.0,97245.0,0.0008582]
[1732447155442,0.56964536,97246.0,97245.0,0.0008582]
[1732447156947,0.23187237,97246.0,97245.0,0.0008582]
[1732447157166,0.1298581,97246.0,97245.0,0.0008582]
[1732447157591,0.1298581,97246.0,97245.0,0.00450545]
[1732447157792,0.1298581,97246.0,97245.0,0.0008582]
[1732447161491,0.23187237,97246.0,97245.0,0.0008582]
[1732447165443,0.30817237,97246.0,97245.0,0.0008582]
[1732447166713,0.30317237,97246.0,97245.0,0.0008582]
[1732447168018,0.35067237,97246.0,97245.0,0.0008582]
[1732447169275,0.37367237,97246.0,97245.0,0.0008582]
[1732447169900,0.35067237,97246.0,97245.0,0.0008582]
[1732447174007,0.37367237,97246.0,97245.0,0.0008582]
[1732447176823,0.2,97242.0,97225.0,0.15]
[1732447177047,0.10201427,97233.0,97220.0,0.04243617]
[1732447177272,0.0267744,97241.0,97215.0,0.0008588]
[1732447177273,0.0475,97227.0,97215.0,0.0008588]
[1732447177501,0.0705,97224.0,97215.0,0.0008588]
[1732447177722,0.1468,97222.0,97215.0,0.0008588]
[1732447177940,0.0993,97220.0,97215.0,0.0008588]
[1732447178162,0.22808867,97219.0,97215.0,0.0008588]
[1732447178414,0.37077042,97219.0,97218.0,0.00016949]
[1732447178624,0.023,97218.0,97215.0,0.0008588]
[1732447178841,0.40396748,97219.0,97215.0,0.0008588]
[1732447178842,0.023,97216.0,97215.0,0.0008588]
[1732447179062,0.25101466,97216.0,97215.0,0.0008588]
[1732447179288,0.25101466,97216.0,97202.0,0.0001]
[1732447179289,0.023,97214.0,97202.0,0.0001]
[1732447179515,0.29181583,97216.0,97200.0,1.03523937]
[1732447179516,0.0763,97206.0,97200.0,1.03523937]
[1732447179752,0.15178867,97205.0,97200.0,1.01077712]
[1732447179979,0.0267744,97204.0,97200.0,1.01077712]
[1732447180185,0.10201427,97203.0,97200.0,1.01077712]
[1732447180394,0.0267744,97202.0,97200.0,1.00077712]
[1732447180837,0.03178044,97227.0,97201.0,0.2295]
[1732447181100,0.03178298,97226.0,97210.0,0.002]
[1732447181332,0.03178298,97225.0,97207.0,0.002]
[1732447181540,0.03178298,97224.0,97202.0,0.00102867]
[1732447181775,0.03178298,97223.0,97202.0,0.00302867]
[1732447181991,0.03178298,97222.0,97202.0,0.00102867]
[1732447182209,0.03178298,97221.0,97202.0,0.00102867]
[1732447182456,0.03178298,97220.0,97207.0,0.0795]
[1732447182682,0.10201427,97245.0,97209.0,0.002]
[1732447182898,0.10201427,97245.0,97213.0,0.002]
[1732447182899,0.03178895,97244.0,97213.0,0.002]
[1732447183117,0.10201427,97243.0,97216.0,0.002]
[1732447183325,0.03178895,97242.0,97216.0,0.002]
[1732447183540,0.1030428,97241.0,97211.0,0.2500428]
[1732447183751,0.03178895,97240.0,97211.0,0.2500428]
[1732447183975,0.00102853,97239.0,97211.0,0.2500428]
[1732447184188,0.03178895,97238.0,97211.0,0.2500428]
[1732447184406,0.00102853,97237.0,97211.0,0.2500428]
[1732447184624,0.03178895,97236.0,97211.0,0.2500428]
[1732447184865,0.00102853,97235.0,97207.0,0.0795]
[1732447185082,0.03178895,97234.0,97211.0,0.04247996]
[1732447185298,0.00102853,97233.0,97207.0,0.0803586]
[1732447185514,0.03178895,97232.0,97209.0,0.15]
[1732447185728,0.00102853,97231.0,97209.0,0.15]
[1732447185944,0.03178895,97230.0,97210.0,0.00102856]
[1732447186202,0.00102853,97229.0,97210.0,0.00102856]
[1732447186652,0.0317913,97228.0,97211.0,0.15]
[1732447186874,0.00102853,97240.0,97211.0,0.15]
[1732447187093,0.03179196,97239.0,97211.0,0.15]
[1732447187303,0.00102853,97238.0,97211.0,0.15]
[1732447187529,0.023,97236.0,97211.0,0.15]
[1732447187739,0.13483476,97235.0,97211.0,0.15]
[1732447187985,0.03179196,97234.0,97208.0,0.15]
[1732447188202,0.1030428,97233.0,97208.0,0.15]
[1732447188413,0.03179196,97232.0,97208.0,0.15]
[1732447188634,0.00102853,97231.0,97208.0,0.15]
[1732447188864,0.03179196,97230.0,97208.0,0.15]
[1732447189091,0.00102853,97229.0,97208.0,0.15]
[1732447189313,0.03179196,97228.0,97208.0,0.15]
[1732447189527,0.00102853,97227.0,97208.0,0.15]
[1732447189747,0.03179196,97226.0,97208.0,0.15]
[1732447189975,0.00102853,97225.0,97208.0,0.15]
[1732447190200,0.03179196,97224.0,97208.0,0.15]
[1732447190410,0.00102853,97223.0,97208.0,0.15]
[1732447190620,0.03179196,97222.0,97208.0,0.15]
[1732447190830,0.00102853,97221.0,97208.0,0.15]
[1732447191050,0.03179196,97220.0,97208.0,0.15]
[1732447191327,0.00102853,97219.0,97208.0,0.15]
[1732447191545,0.03179196,97218.0,97208.0,0.15]
[1732447191774,0.00102853,97217.0,97208.0,0.15]
[1732447191997,0.03179196,97216.0,97208.0,0.15]
[1732447192215,0.00102853,97215.0,97207.0,0.04275094]
[1732447192434,0.03179196,97214.0,97207.0,0.04275094]
[1732447192648,0.00102853,97213.0,97207.0,0.04275094]
[1732447192868,0.03179196,97212.0,97207.0,0.04275094]
[1732447193093,0.00102853,97211.0,97207.0,0.04275094]
[1732447193310,0.03179196,97210.0,97207.0,0.04275094]
[1732447193531,0.00102853,97209.0,97207.0,0.04275094]
[1732447193741,0.03179196,97208.0,97207.0,0.04275094]
[1732447193959,0.12525179,97208.0,97207.0,0.04275094]
[1732447197195,0.12525179,97208.0,97207.0,0.04147901]
[1732447197426,0.12525179,97208.0,97201.0,0.15]
[1732447197719,0.03282049,97207.0,97201.0,0.14880638]
[1732447197953,0.03179196,97206.0,97201.0,0.14880638]
[1732447198185,0.00102853,97205.0,97201.0,0.14880638]
[1732447198403,0.03179196,97204.0,97201.0,0.14880638]
[1732447198833,0.00102853,97219.0,97201.0,0.14880638]
[1732447199041,0.13380312,97218.0,97201.0,0.14880638]
[1732447199265,0.02042057,97228.0,97202.0,0.00102879]
[1732447199266,0.03178885,97217.0,97202.0,0.00102879]
[1732447199481,0.03178885,97223.0,97202.0,0.22664306]
[1732447199698,0.0017178,97229.0,97203.0,0.15]
[1732447199699,0.03178885,97222.0,97203.0,0.15]
[1732447199912,0.0017178,97229.0,97205.0,0.15]
[1732447199913,0.03178885,97228.0,97205.0,0.15]
[1732447200124,0.03281738,97227.0,97207.0,0.15]
[1732447200336,0.03178885,97226.0,97208.0,0.10201427]
[1732447200555,0.03178885,97226.0,97209.0,0.15]
[1732447200797,0.03178885,97225.0,97209.0,0.25201427]
[1732447201027,0.03178885,97228.0,97210.0,0.00102855]
[1732447201241,0.03281738,97227.0,97210.0,0.00102855]
[1732447201494,0.03178885,97226.0,97210.0,0.00102855]
[1732447201934,0.03178885,97225.0,97210.0,0.00102855]
[1732447202154,0.03178885,97224.0,97212.0,0.15]
[1732447202395,0.0017178,97229.0,97214.0,0.2307]
[1732447202631,0.0017178,97229.0,97216.0,0.15]
[1732447202883,0.0017178,97229.0,97218.0,0.15]
[1732447203104,0.00102853,97255.0,97220.0,0.15]
[1732447203354,0.03180201,97245.0,97222.0,0.15]
[1732447203559,0.03180201,97245.0,97223.0,0.15074262]
[1732447203784,0.00102853,97265.0,97226.0,0.2]
[1732447204061,0.00102853,97265.0,97228.0,0.0807]
[1732447204289,0.00102853,97265.0,97229.0,0.10304253]
[1732447204530,0.0017168,97268.0,97234.0,0.2]
[1732447204746,0.03179815,97260.0,97239.0,0.2]
[1732447204962,0.03179815,97260.0,97240.0,0.25201427]
[1732447205183,0.03179815,97260.0,97241.0,0.00102812]
[1732447205408,0.0017168,97268.0,97242.0,0.10201427]
[1732447205628,0.03179908,97260.0,97243.0,0.15]
[1732447205859,0.03179908,97260.0,97244.0,0.10201427]
[1732447206084,0.03179908,97260.0,97245.0,0.15]
[1732447206310,0.03179908,97260.0,97247.0,0.15]
[1732447206538,0.03179908,97260.0,97249.0,0.15]
[1732447206771,0.03179908,97260.0,97250.0,0.10304238]
[1732447206993,0.0017168,97268.0,97251.0,0.15]
[1732447207234,0.0017168,97268.0,97251.0,0.15102809]
[1732447207886,0.03180227,97260.0,97251.0,0.15102809]
[1732447208102,0.0017168,97268.0,97251.0,0.00102809]
[1732447208325,0.0017168,97268.0,97250.0,0.00102814]
[1732447208550,0.0017168,97268.0,97254.0,0.1284]
[1732447208776,0.0017168,97268.0,97257.0,0.15]
[1732447208996,0.0017164,97285.0,97260.0,0.15]
[1732447209213,0.0017164,97285.0,97261.0,0.10304214]
[1732447209433,0.0017164,97285.0,97262.0,0.15]
[1732447209659,0.0017164,97285.0,97270.0,0.15]
[1732447209880,0.0017164,97285.0,97274.0,0.0477]
[1732447210093,0.0017164,97285.0,97276.0,0.15]
[1732447210339,0.0017162,97302.0,97277.0,0.103042]
[1732447210529,0.03181615,97301.0,97278.0,0.15]
[1732447210753,0.03181615,97301.0,97279.0,0.103042]
[1732447211208,0.03181615,97301.0,97280.0,0.15]
[1732447211433,0.03181615,97301.0,97283.0,0.15]
[1732447211716,0.0017162,97302.0,97291.0,0.15]
[1732447211940,0.0017162,97302.0,97293.0,0.15]
[1732447212165,0.0017162,97302.0,97295.0,0.15]
[1732447212394,0.0017162,97302.0,97297.0,0.15]
[1732447212615,0.0017162,97302.0,97292.0,0.2]
[1732447212616,0.0017162,97302.0,97299.0,0.15]
[1732447212868,0.0017162,97302.0,97301.0,0.15]
[1732447213090,0.0017162,97302.0,97301.0,0.25201427]
[1732447213324,0.0017162,97302.0,97301.0,0.15]
[1732447213575,0.0017162,97302.0,97301.0,0.19230184]